bitfinex/quotes_SOLUSD_20250611
["timestamp","ask_amount","ask_price","bid_price","bid_amount"]
[1749665619473,7.34,163.55,163.5,0.28432314]
[1749665619676,7.34,163.55,163.51,23.97002468]
[1749665619979,23.97002468,163.52,163.49,18.64964886]
[1749665620182,37.91437222,163.55,163.49,42.61967354]
[1749665620183,23.97002468,163.54,163.49,42.61967354]
[1749665620388,55.77002468,163.55,163.51,23.97002468]
[1749665620566,23.97002468,163.54,163.5,23.97002468]
[1749665621168,55.77002468,163.55,163.5,23.97002468]
[1749665621405,31.8,163.55,163.51,23.97002468]
[1749665621587,23.97002468,163.52,163.47,18.64964886]
[1749665621789,23.97002468,163.52,163.49,18.64964886]
[1749665621962,23.97002468,163.52,163.48,18.64964886]
[1749665622162,23.97002468,163.52,163.48,42.61967354]
[1749665622361,23.97002468,163.53,163.49,23.97002468]
[1749665622584,23.97002468,163.53,163.47,18.64964886]
[1749665622787,23.97002468,163.52,163.47,18.64964886]
[1749665623181,23.97002468,163.52,163.47,42.61967354]
[1749665623684,48.43002468,163.52,163.47,42.61967354]
[1749665623904,23.97002468,163.51,163.46,25.52352468]
[1749665624097,0.14216157,163.51,163.46,1.5535]
[1749665624272,23.97002468,163.47,163.42,42.61967354]
[1749665624593,23.97002468,163.48,163.44,18.64964886]
[1749665624784,23.97002468,163.48,163.44,23.97002468]
[1749665625225,24.46,163.49,163.45,23.97002468]
[1749665625689,24.46,163.49,163.46,42.61967354]
[1749665625888,24.46,163.49,163.47,23.97002468]
[1749665626200,23.97002468,163.54,163.49,18.64964886]
[1749665626507,24.46,163.53,163.49,23.97002468]
[1749665626686,23.97002468,163.54,163.49,23.97002468]
[1749665627191,39.45435798,163.55,163.49,42.61967354]
[1749665627404,39.45435798,163.55,163.5,23.97002468]
[1749665627405,24.46,163.54,163.5,23.97002468]
[1749665627714,81.77002468,163.55,163.51,23.97002468]
[1749665628216,81.77002468,163.55,163.49,18.64964886]
[1749665628394,23.97002468,163.54,163.49,18.64964886]
[1749665628712,23.97002468,163.51,163.48,18.64964886]
[1749665628929,6.1152521,163.53,163.48,18.64964886]
[1749665629106,23.97002468,163.51,163.47,23.97002468]
[1749665629412,23.97002468,163.5,163.45,42.61967354]
[1749665629715,23.97002468,163.51,163.46,23.97002468]
[1749665630206,24.46,163.52,163.45,18.64964886]
[1749665630207,50.46,163.52,163.45,18.64964886]
[1749665630411,23.97002468,163.49,163.45,18.64964886]
[1749665630708,23.97002468,163.48,163.44,1.5636]
[1749665630903,23.97002468,163.47,163.44,1.5636]
[1749665631306,23.97002468,163.46,163.41,6.3648]
[1749665631605,23.97002468,163.44,163.41,18.64964886]
[1749665632118,23.97002468,163.43,163.38,18.64964886]
[1749665632604,23.97002468,163.42,163.38,18.64964886]
[1749665633021,23.97002468,163.43,163.38,42.61967354]
[1749665633307,50.46,163.46,163.42,23.97002468]
[1749665633308,48.43002468,163.46,163.42,23.97002468]
[1749665633688,0.14216157,163.5,163.45,23.97002468]
[1749665633689,26.14216157,163.5,163.45,23.97002468]
[1749665633892,26.0,163.5,163.41,18.933972]
[1749665634110,23.97002468,163.49,163.41,0.28432314]
[1749665634414,49.97002468,163.5,163.45,23.97002468]
[1749665634600,49.97002468,163.5,163.44,23.97002468]
[1749665634601,23.97002468,163.49,163.44,23.97002468]
[1749665634805,23.97002468,163.48,163.43,20.31074886]
[1749665635116,6.11666805,163.49,163.43,18.64964886]
[1749665635303,56.57632966,163.5,163.43,23.97002468]
[1749665635509,23.97002468,163.49,163.44,23.97002468]
[1749665636515,50.46,163.5,163.44,23.97002468]
[1749665636697,23.97002468,163.49,163.44,23.97002468]
[1749665637202,23.97002468,163.48,163.44,18.64964886]
[1749665637703,23.97002468,163.49,163.44,23.97002468]
[1749665637912,56.57626807,163.5,163.44,23.97002468]
[1749665638217,23.97002468,163.49,163.44,23.97002468]
[1749665638404,23.97002468,163.48,163.44,18.64964886]
[1749665638717,23.97002468,163.48,163.41,5.9596988]
[1749665639015,23.97002468,163.48,163.44,23.97002468]
[1749665639211,22.77026587,163.53,163.46,23.97002468]
[1749665639212,7.48216157,163.53,163.46,23.97002468]
[1749665639389,23.97002468,163.51,163.46,23.97002468]
[1749665639589,23.97002468,163.5,163.46,23.97002468]
[1749665639790,23.97002468,163.47,163.39,1.6611]
[1749665640030,23.97002468,163.44,163.38,5.67537566]
[1749665640193,48.43002468,163.46,163.42,23.97002468]
[1749665640397,23.97002468,163.45,163.41,23.97002468]
[1749665640707,48.43002468,163.46,163.39,0.28432314]
[1749665640908,23.97002468,163.45,163.41,23.97002468]
[1749665641110,48.43002468,163.46,163.42,18.64964886]
[1749665641422,23.97002468,163.45,163.41,18.64964886]
[1749665641725,23.97002468,163.42,163.37,6.6193]
[1749665641892,24.46,163.42,163.36,18.64964886]
[1749665642095,23.97002468,163.4,163.36,18.64964886]
[1749665642419,23.97002468,163.39,163.36,18.64964886]
[1749665642626,23.97002468,163.38,163.34,18.64964886]
[1749665643096,23.97002468,163.39,163.35,18.64964886]
[1749665643418,23.97002468,163.38,163.32,18.64964886]
[1749665643599,23.97002468,163.38,163.32,26.0]
[1749665643912,23.97002468,163.35,163.31,1.6281]
[1749665644138,23.97002468,163.34,163.3,23.97002468]
[1749665644324,23.97002468,163.33,163.29,6.6528]
[1749665644527,23.97002468,163.32,163.27,1.6339]
[1749665644706,24.46,163.34,163.28,44.64655226]
[1749665644911,23.97002468,163.33,163.29,25.99690246]
[1749665645203,24.46,163.34,163.29,25.99690246]
[1749665645204,24.46,163.34,163.3,2.02676034]
[1749665645403,24.46,163.34,163.31,2.02680733]
[1749665645611,24.46,163.34,163.32,2.02676238]
[1749665645846,48.43002468,163.34,163.31,18.64964886]
[1749665646009,48.43002468,163.34,163.3,18.64964886]
[1749665646208,48.43002468,163.34,163.31,2.02438007]
[1749665646434,48.43002468,163.34,163.32,2.02440809]
[1749665646735,23.97002468,163.33,163.3,18.64964886]
[1749665646935,48.43002468,163.34,163.31,2.02435749]
[1749665647101,48.43002468,163.34,163.32,2.02438448]
[1749665647305,48.43002468,163.34,163.3,18.64964886]
[1749665647528,48.43002468,163.34,163.28,18.64964886]
[1749665647744,0.14216157,163.39,163.33,23.97002468]
[1749665647942,5.48327552,163.53,163.32,18.64964886]
[1749665647943,13.9486,163.46,163.34,18.64964886]
[1749665648237,23.97002468,163.43,163.38,23.97002468]
[1749665648448,26.0,163.44,163.37,42.61967354]
[1749665648624,23.97002468,163.41,163.36,1.6612]
[1749665648813,23.97002468,163.41,163.37,23.97002468]
[1749665649015,23.97002468,163.43,163.38,23.97002468]
[1749665649622,23.97002468,163.42,163.38,23.97002468]
[1749665651047,26.0,163.44,163.37,42.61967354]
[1749665651441,23.97002468,163.42,163.37,42.61967354]
[1749665651749,74.43002468,163.43,163.39,23.97002468]
[1749665652249,49.97002468,163.43,163.39,23.97002468]
[1749665652428,26.0,163.43,163.39,23.97002468]
[1749665652742,33.32,163.46,163.4,23.97002468]
[1749665652930,23.97002468,163.45,163.38,0.28432314]
[1749665653247,23.97002468,163.45,163.41,23.97002468]
[1749665653752,57.78,163.46,163.4,23.97002468]
[1749665654046,23.97002468,163.45,163.4,23.97002468]
[1749665654227,23.97002468,163.44,163.37,18.64964886]
[1749665654424,23.97002468,163.43,163.38,23.97002468]
[1749665654629,23.97002468,163.43,163.39,23.97002468]
[1749665654824,23.97002468,163.44,163.39,23.97002468]
[1749665655124,0.14216157,163.45,163.37,18.64964886]
[1749665655346,0.14216157,163.45,163.39,23.97002468]
[1749665655539,81.75002468,163.46,163.41,23.97002468]
[1749665655737,23.97002468,163.45,163.4,23.97002468]
[1749665656043,23.97002468,163.44,163.39,23.97002468]
[1749665656624,23.97002468,163.44,163.37,18.64964886]
[1749665656950,63.89778469,163.46,163.39,23.97002468]
[1749665657122,23.97002468,163.44,163.39,23.97002468]
[1749665657449,23.97002468,163.42,163.37,42.61967354]
[1749665657747,23.97002468,163.44,163.39,23.97002468]
[1749665657947,23.97002468,163.43,163.38,23.97002468]
[1749665658320,56.72037538,163.45,163.34,0.14216157]
[1749665658648,23.97002468,163.37,163.33,18.64964886]
[1749665658849,23.97002468,163.36,163.33,18.64964886]
[1749665659052,24.46,163.38,163.29,18.64964886]
[1749665659242,23.97002468,163.34,163.28,1.5819]
[1749665659452,23.97002468,163.33,163.28,1.5819]
[1749665659755,24.46,163.34,163.23,18.64964886]
[1749665659967,24.46,163.34,163.27,18.64964886]
[1749665659968,23.97002468,163.33,163.27,18.64964886]
[1749665660134,23.97002468,163.32,163.28,18.64964886]
[1749665660322,24.46,163.34,163.28,18.64964886]
[1749665660525,23.97002468,163.29,163.24,23.97002468]
[1749665660852,23.97002468,163.27,163.22,1.5819]
[1749665661161,23.97002468,163.27,163.23,18.64964886]
[1749665661460,24.48,163.3,163.23,42.61967354]
[1749665661621,23.97002468,163.27,163.23,42.61967354]
[1749665661827,23.97002468,163.27,163.23,18.64964886]
[1749665662231,26.0,163.27,163.18,6.6129]
[1749665662653,48.45002468,163.26,163.18,6.6129]
[1749665662860,24.48,163.26,163.19,18.64964886]
[1749665663144,0.5,163.29,163.25,18.64964886]
[1749665663372,0.5,163.29,163.28,23.97002468]
[1749665663866,0.5,163.29,163.27,23.97002468]
[1749665664065,23.97002468,163.31,163.27,23.97002468]
[1749665664559,23.97002468,163.31,163.24,18.933972]
[1749665664760,23.97002468,163.31,163.27,23.97002468]
[1749665665267,48.45002468,163.32,163.27,23.97002468]
[1749665665664,48.45002468,163.32,163.24,18.933972]
[1749665665665,24.48,163.32,163.24,18.933972]
[1749665665870,23.97002468,163.3,163.26,18.64964886]
[1749665666061,23.97002468,163.29,163.24,23.97002468]
[1749665666579,23.97002468,163.27,163.22,18.64964886]
[1749665666778,26.0,163.31,163.22,42.61967354]
[1749665667076,0.5,163.28,163.23,18.64964886]
[1749665667285,0.5,163.28,163.25,23.97002468]
[1749665667452,23.97002468,163.29,163.24,23.97002468]
[1749665667651,26.0,163.31,163.23,18.64964886]
[1749665667861,7.46216157,163.33,163.27,23.97002468]
[1749665667862,7.32,163.33,163.27,23.97002468]
[1749665668054,24.48,163.32,163.27,23.97002468]
[1749665668375,23.97002468,163.3,163.26,23.97002468]
[1749665668548,23.97002468,163.3,163.25,23.97002468]
[1749665669179,23.97002468,163.3,163.26,23.97002468]
[1749665669976,23.97002468,163.29,163.25,18.64964886]
[1749665670161,23.97002468,163.29,163.25,42.61967354]
[1749665670353,30.60318014,163.32,163.25,42.61967354]
[1749665670554,23.97002468,163.29,163.25,42.61967354]
[1749665670850,23.97002468,163.29,163.23,0.28432314]
[1749665671051,23.97002468,163.28,163.22,18.64964886]
[1749665671250,0.14216157,163.31,163.22,18.64964886]
[1749665671483,0.14216157,163.31,163.24,23.97002468]
[1749665671650,0.14216157,163.31,163.22,18.64964886]
[1749665671847,23.97002468,163.28,163.22,18.64964886]
[1749665672060,6.62369871,163.3,163.24,23.97002468]
[1749665672378,23.97002468,163.28,163.24,23.97002468]
[1749665673176,23.97002468,163.27,163.17,1.5466]
[1749665673356,23.97002468,163.27,163.22,23.97002468]
[1749665673555,23.97002468,163.27,163.2,18.64964886]
[1749665673756,23.97002468,163.25,163.17,1.5466]
[1749665673975,23.97002468,163.25,163.19,18.64964886]
[1749665674176,23.97002468,163.25,163.21,23.97002468]
[1749665674377,23.97002468,163.25,163.19,18.64964886]
[1749665674566,23.97002468,163.23,163.17,20.19624886]
[1749665674775,24.48,163.24,163.18,42.61967354]
[1749665674986,23.97002468,163.23,163.18,42.61967354]
[1749665675292,24.48,163.24,163.2,23.97002468]
[1749665675983,24.48,163.24,163.17,1.5466]
[1749665676184,48.45002468,163.24,163.2,23.97002468]
[1749665676551,24.48,163.24,163.21,23.97002468]
[1749665676754,26.0,163.28,163.24,18.64964886]
[1749665677056,6.4438,163.31,163.24,18.64964886]
[1749665677057,23.97002468,163.31,163.27,23.97002468]
[1749665677373,48.45002468,163.31,163.21,18.933972]
[1749665677562,7.58,163.32,163.28,23.97002468]
[1749665677758,7.58,163.32,163.24,18.64964886]
[1749665677958,56.03002468,163.32,163.27,23.97002468]
[1749665678186,32.06,163.32,163.27,23.97002468]
[1749665678476,56.03002468,163.32,163.28,23.97002468]
[1749665679768,7.58,163.32,163.28,23.97002468]
[1749665680066,56.03002468,163.32,163.28,23.97002468]
[1749665680254,56.03002468,163.32,163.27,23.97002468]
[1749665680458,56.03002468,163.32,163.28,23.97002468]
[1749665680658,56.03002468,163.32,163.27,23.97002468]
[1749665681580,7.58,163.32,163.29,23.97002468]
[1749665681782,58.06,163.32,163.29,23.97002468]
[1749665682082,0.5,163.31,163.29,23.97002468]
[1749665683077,0.5,163.31,163.25,1.5038]
[1749665683286,0.5,163.31,163.29,23.97002468]
[1749665683476,24.47002468,163.31,163.27,23.97002468]
[1749665683675,23.97002468,163.3,163.26,23.97002468]
[1749665683881,23.97002468,163.3,163.27,2.05044728]
[1749665684082,0.5,163.31,163.27,23.97002468]
[1749665684282,0.5,163.31,163.28,26.02042424]
[1749665684475,0.5,163.31,163.28,23.97002468]
[1749665684667,0.5,163.31,163.29,23.97002468]
[1749665685075,0.5,163.31,163.25,1.5038]
[1749665685268,0.5,163.31,163.29,23.97002468]
[1749665685469,0.5,163.31,163.25,1.5038]
[1749665685673,0.5,163.31,163.27,23.97002468]
[1749665685887,0.5,163.31,163.28,2.05036797]
[1749665686070,0.5,163.31,163.25,1.5038]
[1749665686273,23.97002468,163.3,163.25,1.5038]
[1749665686464,23.97002468,163.3,163.26,2.05053615]
[1749665686667,23.97002468,163.3,163.26,23.97002468]
[1749665687386,24.47002468,163.31,163.27,2.05502034]
[1749665687587,0.5,163.31,163.27,23.97002468]
[1749665687976,0.5,163.31,163.28,2.05499853]
[1749665688280,0.5,163.31,163.27,23.97002468]
[1749665688481,0.5,163.31,163.28,26.02494635]
[1749665688685,0.5,163.31,163.28,23.97002468]
[1749665689585,0.5,163.31,163.26,18.64964886]
[1749665689795,23.97002468,163.3,163.27,2.05487894]
[1749665690088,23.97002468,163.3,163.26,23.97002468]
[1749665690271,0.5,163.31,163.26,23.97002468]
[1749665690472,0.5,163.31,163.27,23.97002468]
[1749665690990,24.47002468,163.31,163.26,23.97002468]
[1749665691188,23.97002468,163.3,163.27,2.04899323]
[1749665691399,23.97002468,163.3,163.25,23.97002468]
[1749665691786,23.97002468,163.29,163.24,23.97002468]
[1749665692102,6.62342507,163.31,163.25,23.97002468]
[1749665692278,23.97002468,163.29,163.23,18.64964886]
[1749665692478,23.97002468,163.28,163.23,42.61967354]
[1749665692878,48.45002468,163.29,163.24,23.97002468]
[1749665693075,24.48,163.29,163.26,23.97002468]
[1749665693277,24.48,163.29,163.27,23.97002468]
[1749665693578,48.95002468,163.31,163.27,23.97002468]
[1749665693786,24.98,163.31,163.27,23.97002468]
[1749665694001,0.5,163.31,163.27,23.97002468]
[1749665695590,24.47002468,163.31,163.27,23.97002468]
[1749665695996,0.5,163.31,163.27,23.97002468]
[1749665696524,0.5,163.31,163.28,23.97002468]
[1749665697592,0.5,163.31,163.26,18.64964886]
[1749665697593,24.47002468,163.31,163.27,23.97002468]
[1749665699185,0.5,163.31,163.27,23.97002468]
[1749665699502,6.62341075,163.31,163.21,27.6011]
[1749665699824,6.62341075,163.31,163.22,42.61967354]
[1749665699825,23.97002468,163.26,163.22,42.61967354]
[1749665700102,48.45002468,163.26,163.21,25.57112468]
[1749665700316,23.97002468,163.22,163.17,1.5786]
[1749665700506,23.97002468,163.22,163.14,6.2097]
[1749665700507,24.48,163.22,163.14,6.2097]
[1749665700706,23.97002468,163.21,163.14,6.2097]
[1749665700902,23.97002468,163.21,163.15,18.64964886]
[1749665701215,24.48,163.22,163.2,23.97002468]
[1749665701401,23.97002468,163.26,163.18,44.64964886]
[1749665701721,23.97002468,163.25,163.2,23.97002468]
[1749665701890,24.48,163.26,163.21,23.97002468]
[1749665702087,48.45002468,163.26,163.21,23.97002468]
[1749665702290,26.0,163.27,163.17,18.933972]
[1749665702291,24.48,163.25,163.17,18.933972]
[1749665702503,24.48,163.25,163.21,23.97002468]
[1749665702716,23.97002468,163.24,163.17,18.933972]
[1749665702922,23.97002468,163.22,163.14,39.79581026]
[1749665703231,23.97002468,163.22,163.18,23.97002468]
[1749665703593,23.97002468,163.21,163.17,23.97002468]
[1749665703792,23.97002468,163.2,163.16,23.97002468]
[1749665704113,23.97002468,163.2,163.13,1.5786]
[1749665704310,23.97002468,163.17,163.11,7.61267596]
[1749665704510,23.97002468,163.17,163.13,23.97002468]
[1749665704827,23.97002468,163.18,163.14,23.97002468]
[1749665705116,23.97002468,163.19,163.15,23.97002468]
[1749665705423,25.0,163.21,163.17,23.97002468]
[1749665705597,25.0,163.21,163.13,42.61967354]
[1749665705929,23.97002468,163.2,163.09,14.00267596]
[1749665706126,26.0,163.17,163.1,18.64964886]
[1749665706330,24.5,163.16,163.12,23.97002468]
[1749665706636,0.64216157,163.21,163.15,23.97002468]
[1749665706793,0.5,163.21,163.2,23.97002468]
[1749665707111,13.66493538,163.27,163.2,23.97002468]
[1749665707112,31.51002468,163.27,163.2,23.97002468]
[1749665707313,32.04,163.27,163.2,18.64964886]
[1749665707630,26.0,163.24,163.17,18.64964886]
[1749665707791,7.54,163.27,163.2,23.97002468]
[1749665707993,32.04,163.27,163.18,18.64964886]
[1749665708302,7.54,163.27,163.19,18.933972]
[1749665708607,48.47002468,163.26,163.21,23.97002468]
[1749665708829,7.54,163.27,163.23,23.97002468]
[1749665709001,0.5,163.26,163.23,23.97002468]
[1749665709201,0.5,163.26,163.19,18.64964886]
[1749665709202,23.97002468,163.24,163.19,18.64964886]
[1749665709413,23.97002468,163.23,163.19,18.64964886]
[1749665709730,49.97002468,163.24,163.19,23.97002468]
[1749665709896,49.97002468,163.24,163.2,23.97002468]
[1749665709897,26.0,163.24,163.2,23.97002468]
[1749665710099,49.97002468,163.24,163.17,18.64964886]
[1749665710420,6.12634547,163.23,163.17,42.61967354]
[1749665710625,50.5,163.24,163.19,23.97002468]
[1749665710830,74.47002468,163.24,163.19,23.97002468]
[1749665711420,56.6260285,163.24,163.17,18.64964886]
[1749665711594,74.47002468,163.24,163.2,23.97002468]
[1749665711795,0.5,163.26,163.23,23.97002468]
[1749665711991,0.5,163.26,163.22,18.64964886]
[1749665712196,0.5,163.26,163.21,0.14216157]
[1749665712197,7.54,163.27,163.21,18.933972]
[1749665712408,7.54,163.27,163.26,23.97002468]
[1749665712613,7.54,163.27,163.21,0.14216157]
[1749665712614,31.51002468,163.27,163.21,0.14216157]
[1749665712807,23.97002468,163.24,163.17,18.79181043]
[1749665713120,38.16493934,163.27,163.17,18.64964886]
[1749665713121,0.14216157,163.26,163.17,18.64964886]
[1749665713510,23.97002468,163.23,163.19,18.64964886]
[1749665713710,24.5,163.23,163.19,23.97002468]
[1749665714104,24.5,163.23,163.21,23.97002468]
[1749665714622,24.5,163.23,163.15,0.14216157]
[1749665714623,54.59647055,163.23,163.15,18.79181043]
[1749665714810,54.59647055,163.23,163.19,23.97002468]
[1749665715014,54.59647055,163.23,163.13,26.0]
[1749665715015,30.62644587,163.23,163.17,23.97002468]
[1749665715331,30.62644587,163.23,163.18,23.97002468]
[1749665715332,23.97002468,163.22,163.18,23.97002468]
[1749665715507,23.97002468,163.22,163.14,18.64964886]
[1749665715820,54.59647055,163.23,163.18,23.97002468]
[1749665716336,30.62644587,163.23,163.14,18.64964886]
[1749665716633,23.97002468,163.21,163.14,0.28432314]
[1749665716798,6.12724063,163.21,163.15,23.97002468]
[1749665716995,6.12724063,163.21,163.16,23.97002468]
[1749665717215,30.09726531,163.21,163.16,23.97002468]
[1749665717414,30.09726531,163.21,163.15,23.97002468]
[1749665717415,23.97002468,163.2,163.15,23.97002468]
[1749665717707,23.97002468,163.17,163.1,18.64964886]
[1749665717910,24.11218625,163.18,163.13,23.97002468]
[1749665718109,23.97002468,163.17,163.1,18.64964886]
[1749665718316,0.14216157,163.18,163.1,18.64964886]
[1749665718527,0.14216157,163.18,163.12,23.97002468]
[1749665718835,30.62797333,163.19,163.11,0.28432314]
[1749665718836,24.5,163.19,163.11,0.28432314]
[1749665719133,0.5,163.17,163.11,44.933972]
[1749665719510,0.5,163.17,163.16,23.97002468]
[1749665719728,0.5,163.17,163.11,44.933972]
[1749665720032,0.5,163.17,163.16,23.97002468]
[1749665720228,0.5,163.17,163.11,44.933972]
[1749665720603,0.5,163.17,163.16,23.97002468]
[1749665720799,24.5,163.21,163.16,23.97002468]
[1749665721130,30.62722749,163.21,163.11,44.933972]
[1749665721308,30.62722749,163.21,163.17,23.97002468]
[1749665721714,24.5,163.21,163.17,23.97002468]
[1749665721935,24.5,163.22,163.19,23.97002468]
[1749665722113,48.47002468,163.22,163.17,23.97002468]
[1749665722433,23.97002468,163.19,163.11,18.64964886]
[1749665722620,30.09860223,163.17,163.1,18.64964886]
[1749665722931,30.09860223,163.17,163.1,23.97002468]
[1749665722932,23.97002468,163.15,163.1,23.97002468]
[1749665723100,24.5,163.14,163.1,23.97002468]
[1749665723508,24.5,163.14,163.05,20.30024886]
[1749665723813,23.97002468,163.13,163.08,23.97002468]
[1749665724021,0.5,163.13,163.01,1.6506]
[1749665724236,23.97002468,163.12,163.01,1.6506]
[1749665724438,23.97002468,163.11,163.01,1.6506]
[1749665724741,0.14216157,163.05,162.99,8.33333333]
[1749665724914,24.5,163.04,162.99,8.33333333]
[1749665725118,23.97002468,163.03,162.99,8.33333333]
[1749665725334,26.0,163.07,162.99,8.33333333]
[1749665725513,48.47002468,163.06,163.01,23.97002468]
[1749665725903,23.97002468,163.05,162.99,8.33333333]
[1749665726425,24.5,163.06,162.99,8.33333333]
[1749665726636,23.97002468,163.04,162.99,8.33333333]
[1749665727007,6.13195977,163.08,163.0,23.97002468]
[1749665727231,6.13195977,163.08,163.02,23.97002468]
[1749665727232,24.52,163.07,163.02,23.97002468]
[1749665727531,23.97002468,163.06,163.0,18.64964886]
[1749665727706,24.52,163.07,162.99,8.33333333]
[1749665727906,23.97002468,163.05,163.0,23.97002468]
[1749665728106,24.52,163.07,162.99,8.33333333]
[1749665728505,26.0,163.05,162.99,8.33333333]
[1749665728711,23.97002468,163.02,162.99,8.33333333]
[1749665728935,23.97002468,163.01,162.99,8.33333333]
[1749665729240,24.52,163.02,162.99,8.33333333]
[1749665729436,48.49002468,163.02,162.99,8.33333333]
[1749665729818,48.49002468,163.02,162.99,32.30335801]
[1749665729819,24.52,163.02,162.99,32.30335801]
[1749665730019,24.52,163.02,162.99,8.33333333]
[1749665730335,24.52,163.07,163.01,23.97002468]
[1749665730510,48.49002468,163.07,162.99,8.33333333]
[1749665730716,6.1304561,163.12,163.0,18.64964886]
[1749665730925,23.97002468,163.09,163.0,18.64964886]
[1749665731128,23.97002468,163.08,163.0,18.64964886]
[1749665731327,24.52,163.11,163.03,23.97002468]
[1749665731542,24.52,163.11,163.05,23.97002468]
[1749665731857,24.52,163.11,163.04,23.97002468]
[1749665732013,24.52,163.11,163.0,18.64964886]
[1749665732014,23.97002468,163.08,163.0,18.64964886]
[1749665732214,24.52,163.11,163.0,18.64964886]
[1749665732215,23.97002468,163.06,163.0,18.64964886]
[1749665732427,24.52,163.05,163.0,18.64964886]
[1749665732629,24.52,163.05,162.99,8.33333333]
[1749665733246,54.62317752,163.05,162.99,8.33333333]
[1749665733546,24.52,163.05,163.0,23.97002468]
[1749665733848,48.49002468,163.05,163.0,23.97002468]
[1749665734090,30.65323746,163.05,162.99,8.33333333]
[1749665734228,24.47002468,163.04,162.99,8.33333333]
[1749665734431,0.5,163.04,163.0,23.97002468]
[1749665734743,0.5,163.04,163.01,23.97002468]
[1749665734939,23.97002468,163.03,162.99,8.33333333]
[1749665735117,6.63349425,163.04,162.99,8.33333333]
[1749665735514,23.97002468,163.02,162.99,8.33333333]
[1749665735710,24.52,163.01,162.99,8.33333333]
[1749665735937,24.52,163.01,162.99,32.30335801]
[1749665736137,0.5,163.04,162.99,8.33333333]
[1749665736341,24.52,163.03,162.99,32.30335801]
[1749665736718,0.5,163.04,163.02,23.97002468]
[1749665736920,0.5,163.04,163.03,23.97002468]
[1749665737119,0.5,163.04,162.99,8.33333333]
[1749665737319,0.5,163.04,163.03,23.97002468]
[1749665737623,0.5,163.04,163.0,18.64964886]
[1749665737838,0.5,163.04,163.0,23.97002468]
[1749665738042,6.63358718,163.04,163.0,23.97002468]
[1749665738243,24.52,163.03,162.99,32.30335801]
[1749665738752,30.65384624,163.03,162.99,8.33333333]
[1749665738943,30.65384624,163.03,162.99,32.30335801]
[1749665739145,54.62387092,163.03,162.99,8.33333333]
[1749665739483,23.97002468,163.0,162.99,8.33333333]
[1749665739637,23.97002468,163.01,162.99,8.33333333]
[1749665740241,49.97002468,163.0,162.99,8.33333333]
[1749665740747,80.624994,163.0,162.99,8.33333333]
[1749665741261,80.76715557,163.0,162.99,8.33333333]
[1749665741469,54.76715557,163.0,162.99,8.33333333]
[1749665742334,30.79713089,163.0,162.99,8.33333333]
[1749665742770,54.76715557,163.0,162.99,8.33333333]
[1749665744252,30.79713089,163.0,162.99,8.33333333]
[1749665744560,54.76715557,163.0,162.99,8.33333333]
[1749665744874,6.13459517,163.01,162.99,8.33333333]
[1749665745077,23.97002468,163.01,162.99,8.33333333]
[1749665745238,48.51002468,163.0,162.99,8.33333333]
[1749665746974,26.0,162.97,162.93,2.49693469]
[1749665747176,23.97002468,162.94,162.93,2.49693469]
[1749665747384,48.51002468,162.94,162.93,2.49693469]
[1749665747756,24.54,162.94,162.93,2.49693469]
[1749665748172,48.51002468,162.94,162.93,2.49693469]
[1749665748674,24.54,162.94,162.93,2.49693469]
[1749665749174,48.51002468,162.94,162.93,2.49693469]
[1749665749379,24.54,162.94,162.93,2.49693469]
[1749665749587,0.5,163.04,162.94,18.64964886]
[1749665749890,24.54,163.02,163.01,23.97002468]
[1749665750052,48.51002468,163.03,162.96,25.15534886]
[1749665750249,23.97002468,163.02,162.97,18.64964886]
[1749665750478,24.54,163.03,162.96,6.5057]
[1749665750682,24.54,163.03,162.96,18.64964886]
[1749665750885,23.97002468,163.0,162.96,18.64964886]
[1749665751092,24.54,162.99,162.96,18.64964886]
[1749665751258,24.54,162.99,162.98,42.61967354]
[1749665751457,24.54,163.01,162.99,18.64964886]
[1749665751657,24.54,163.02,162.99,18.64964886]
[1749665752555,24.54,163.02,162.99,23.97002468]
[1749665752751,24.54,163.02,162.96,18.64964886]
[1749665752990,48.51002468,163.02,162.99,18.64964886]
[1749665753207,23.97002468,163.01,162.97,23.97002468]
[1749665753558,23.97002468,163.0,162.96,18.64964886]
[1749665753753,24.54,162.99,162.96,18.64964886]
[1749665753969,24.54,162.99,162.96,42.61967354]
[1749665754169,24.54,162.99,162.98,42.61967354]
[1749665754479,24.54,163.01,162.98,18.64964886]
[1749665754678,24.54,163.01,162.98,42.61967354]
[1749665755758,24.54,163.01,162.98,18.64964886]
[1749665756279,24.54,163.01,162.98,42.61967354]
[1749665756961,24.54,163.01,162.99,18.64964886]